[Event "Netanya Open 2019"]
[Site "Netanya"]
[Date "2019.06.27"]
[Round "5.14"]
[White "Bronstein, Or"]
[Black "Greenfeld, Alon"]
[Result "1-0"]
[ECO "D20"]
[WhiteElo "2378"]
[BlackElo "2513"]
[Annotator "ChessBase"]
[PlyCount "109"]
[EventDate "2019.06.23"]
[EventType "swiss"]
[EventCountry "ISR"]
[SourceTitle "playchess.com"]
[Source "ChessBase"]
[SourceQuality "1"]
[TimeControl "40/5400+30:1800+30"]

1. d4 {[%emt 0:00:00]} d5 {[%emt 0:01:01]} 2. c4 {[%emt 0:00:20]} dxc4 {[%emt 0:01:07]} 3. e4 {[%emt 0:00:37]} Nf6 {[%emt 0:02:54]} 4. e5 {[%emt 0:00:49]} Nd5 {[%emt 0:00:07]} 5. Bxc4 {[%emt 0:00:03]} Bf5 {[%emt 0:00:39]} 6. Qb3 {[%emt 0:11:54]} c6 {[%emt 0:01:52]} 7. Bxd5 {[%emt 0:03:10]} cxd5 {[%emt 0:03:10]} 8. Qxb7 {[%emt 0:00:41]} Qc8 {[%emt 0:00:09]} 9. Qxc8+ {[%emt 0:02:29]} Bxc8 {[%emt 0:00:31]} 10. Nc3 {[%emt 0:00:05]} e6 {[%emt 0:01:27]} 11. Nge2 {[%emt 0:03:43]} Ba6 {[%emt 0:03:38]} 12. Be3 {[%emt 0:15:32]} Nc6 {[%emt 0:01:55]} 13. Kd2 {[%emt 0:12:00]} Rb8 {[%emt 0:04:47]} 14. Rab1 {[%emt 0:01:23]} Kd7 {[%emt 0:08:46]} 15. Rhc1 {[%emt 0:05:54]} Na5 {[%emt 0:02:47]} 16. Na4 {[%emt 0:02:22]} Bb4+ {[%emt 0:15:00]} 17. Kd1 {[%emt 0:05:34]} Bd3 {[%emt 0:17:25]} 18. Ra1 {[%emt 0:00:08]} Nc4 {[%emt 0:00:39]} 19. Nf4 {[%emt 0:07:48]} Bf1 {[%emt 0:08:20]} 20. a3 {[%emt 0:04:07]} Be7 {[%emt 0:02:14]} 21. Ke1 {[%emt 0:00:50]} Nxe3 {[%emt 0:01:59]} 22. fxe3 {[%emt 0:00:02]} Bc4 {[%emt 0:00:49]} 23. Kd2 {[%emt 0:04:53]} Rb3 {[%emt 0:03:29]} 24. Rc3 {[%emt 0:00:16]} Rxc3 {[%emt 0:00:31]} 25. Kxc3 {[%emt 0:01:14]} Bb5 {[%emt 0:06:21]} 26. Nc5+ {[%emt 0:00:37]} Bxc5 {[%emt 0:00:16]} 27. dxc5 {[%emt 0:00:02]} a5 {[%emt 0:00:48]} 28. b4 {[%emt 0:04:01]} Ra8 {[%emt 0:00:54]} 29. Rb1 {[%emt 0:09:25]} axb4+ {[%emt 0:00:24]} 30. axb4 {[%emt 0:00:09]} g5 {[%emt 0:00:27]} 31. Nh3 {[%emt 0:01:01]} h6 {[%emt 0:04:19]} 32. Nf2 {[%emt 0:00:56]} Kc6 {[%emt 0:00:54]} 33. Nd1 {[%emt 0:01:03]} Ra3+ {[%emt 0:01:57]} 34. Kb2 {[%emt 0:00:39]} Ra4 {[%emt 0:01:46]} 35. Kb3 {[%emt 0:00:13]} Ra7 {[%emt 0:01:14]} 36. Nc3 {[%emt 0:00:07]} Bd3 {[%emt 0:00:55]} 37. Rd1 {[%emt 0:02:24]} Bc4+ {[%emt 0:00:21]} 38. Kc2 {[%emt 0:00:06]} Ra3 {[%emt 0:01:27]} 39. Rb1 {[%emt 0:00:04]} h5 {[%emt 0:00:20]} 40. Kb2 {[%emt 0:01:01]} Rb3+ {[%emt 0:00:20]} 41. Kc2 {[%emt 0:30:01]} Ra3 {[%emt 0:30:06]} 42. g3 {[%emt 0:00:00]} g4 {[%emt 0:00:00]} 43. Kd2 {[%emt 0:00:00]} Ra8 {[%emt 0:00:00]} 44. Rb2 {[%emt 0:00:00]} Ra1 {[%emt 0:00:00]} 45. Nb1 {[%emt 0:00:00]} Ra8 {[%emt 0:01:27]} 46. Kc3 {[%emt 0:00:00]} Ba2 {[%emt 0:02:03]} 47. Kd4 {[%emt 0:00:00]} Bxb1 {[%emt 0:00:19]} 48. b5+ {[%emt 0:00:00]} Kb7 {[%emt 0:00:06]} 49. Rxb1 {[%emt 0:00:00]} Ra4+ {[%emt 0:00:04]} 50. Kd3 {[%emt 0:00:00]} Ra3+ {[%emt 0:00:15]} 51. Kd2 {[%emt 0:00:34]} Ra2+ {[%emt 0:00:30]} 52. Kc3 {[%emt 0:01:20]} Ra4 {[%emt 0:00:10]} 53. Rb4 {[%emt 0:01:14]} Ra3+ {[%emt 0:00:14]} 54. Kb2 {[%emt 0:00:59]} Rxe3 {[%emt 0:00:25]} 55. b6 {[%emt 0:00:06]} 1-0

[Event "Netanya Open 2019"]
[Site "Netanya"]
[Date "2019.06.27"]
[Round "5.15"]
[White "Goikhman, Valentin"]
[Black "Rechlis, Gad"]
[Result "0-1"]
[ECO "B48"]
[WhiteElo "2320"]
[BlackElo "2506"]
[Annotator "ChessBase"]
[PlyCount "64"]
[EventDate "2019.06.23"]
[EventType "swiss"]
[EventCountry "ISR"]
[SourceTitle "playchess.com"]
[Source "ChessBase"]
[SourceQuality "1"]
[TimeControl "40/5400+30:1800+30"]

1. e4 {[%emt 0:00:00]} c5 {[%emt 0:24:58]} 2. Nf3 {[%emt 0:00:06]} e6 {[%emt 0:00:17]} 3. d4 {[%emt 0:00:28]} cxd4 {[%emt 0:00:04]} 4. Nxd4 {[%emt 0:00:10]} Nc6 {[%emt 0:00:05]} 5. Nc3 {[%emt 0:03:06]} Qc7 {[%emt 0:00:16]} 6. Be3 {[%emt 0:04:53]} a6 {[%emt 0:02:33]} 7. Bd3 {[%emt 0:04:33]} Nf6 {[%emt 0:03:36]} 8. O-O {[%emt 0:01:18]} b5 {[%emt 0:02:11]} 9. Re1 {[%emt 0:09:19]} Bb7 {[%emt 0:14:42]} 10. Nxc6 {[%emt 0:12:54]} Qxc6 {[%emt 0:11:20]} 11. a3 {[%emt 0:03:43]} Be7 {[%emt 0:04:25]} 12. Qf3 {[%emt 0:03:00]} O-O {[%emt 0:01:36]} 13. Qh3 {[%emt 0:04:09]} d6 {[%emt 0:07:31]} 14. Rad1 {[%emt 0:09:28]} Rfd8 {[%emt 0:02:06]} 15. f4 {[%emt 0:19:06]} h5 {[%emt 0:02:27]} 16. Kh1 {[%emt 0:03:52]} Qc7 {[%emt 0:08:32]} 17. Bg1 {[%emt 0:06:41]} e5 {[%emt 0:02:55]} 18. Qg3 {[%emt 0:05:30]} d5 {[%emt 0:02:00]} 19. fxe5 {[%emt 0:02:56]} Nxe4 {[%emt 0:00:03]} 20. Qf3 {[%emt 0:02:39]} Qxe5 {[%emt 0:01:16]} 21. Nxd5 {[%emt 0:00:20]} Bxd5 {[%emt 0:02:16]} 22. Bxe4 {[%emt 0:00:12]} Bxe4 {[%emt 0:00:29]} 23. Rxe4 {[%emt 0:00:21]} Qf6 {[%emt 0:00:21]} 24. Qxh5 {[%emt 0:01:23]} Qg5 {[%emt 0:02:22]} 25. Qxg5 {[%emt 0:01:33]} Bxg5 {[%emt 0:00:02]} 26. Ree1 {[%emt 0:00:47]} Rxd1 {[%emt 0:00:43]} 27. Rxd1 {[%emt 0:00:02]} Re8 {[%emt 0:00:05]} 28. Rd5 {[%emt 0:00:57]} Bc1 {[%emt 0:00:29]} 29. b3 {[%emt 0:00:29]} Re1 {[%emt 0:00:13]} 30. Rd3 {[%emt 0:00:33]} Bxa3 {[%emt 0:00:09]} 31. g4 {[%emt 0:00:30]} Bc5 {[%emt 0:00:15]} 32. Rg3 {[%emt 0:00:04]} a5 {[%emt 0:00:13]} 0-1

[Event "Netanya Open 2019"]
[Site "Netanya"]
[Date "2019.06.27"]
[Round "5.17"]
[White "Zanan, Evgeny"]
[Black "Musyuk, Lior"]
[Result "1/2-1/2"]
[ECO "D41"]
[WhiteElo "2505"]
[BlackElo "2190"]
[Annotator "ChessBase"]
[PlyCount "83"]
[EventDate "2019.06.23"]
[EventType "swiss"]
[EventCountry "ISR"]
[SourceTitle "playchess.com"]
[Source "ChessBase"]
[SourceQuality "1"]
[TimeControl "40/5400+30:1800+30"]

1. d4 {[%emt 0:00:00]} Nf6 {[%emt 0:00:00]} 2. c4 {[%emt 0:00:00]} e6 {[%emt 0:00:05]} 3. Nc3 {[%emt 0:00:00]} d5 {[%emt 0:00:10]} 4. cxd5 {[%emt 0:00:00]} Nxd5 {[%emt 0:00:14]} 5. e4 {[%emt 0:00:01]} Nxc3 {[%emt 0:00:31]} 6. bxc3 {[%emt 0:00:05]} c5 {[%emt 0:00:12]} 7. Nf3 {[%emt 0:01:10]} cxd4 {[%emt 0:00:18]} 8. cxd4 {[%emt 0:00:04]} Bb4+ {[%emt 0:00:06]} 9. Bd2 {[%emt 0:00:03]} Bxd2+ {[%emt 0:00:32]} 10. Qxd2 {[%emt 0:00:08]} O-O {[%emt 0:01:11]} 11. Bc4 {[%emt 0:00:04]} Nc6 {[%emt 0:03:43]} 12. O-O {[%emt 0:00:31]} b6 {[%emt 0:01:28]} 13. Rad1 {[%emt 0:01:39]} Bb7 {[%emt 0:04:01]} 14. Rfe1 {[%emt 0:04:42]} Rc8 {[%emt 1:24:29]} 15. Bf1 {[%emt 1:29:03]} Qd6 {[%emt 0:00:30]} 16. e5 {[%emt 0:00:00]} Qe7 {[%emt 0:00:00]} 17. d5 {[%emt 0:00:00]} exd5 {[%emt 0:00:00]} 18. Bd3 {[%emt 0:00:00]} Qb4 {[%emt 0:00:00]} 19. Qg5 {[%emt 0:00:00]} h6 {[%emt 0:00:00]} 20. Qf5 {[%emt 0:00:00]} g6 {[%emt 0:00:00]} 21. Qd7 {[%emt 0:00:00]} Qe7 {[%emt 0:00:00]} 22. Qg4 {[%emt 0:00:00]} Kg7 {[%emt 0:00:00]} 23. h4 {[%emt 0:00:00]} h5 {[%emt 0:00:00]} 24. Qg3 {[%emt 0:00:00]} Qe6 {[%emt 0:00:00]} 25. Bb5 {[%emt 0:00:00]} Qg4 {[%emt 0:00:00]} 26. Qh2 {[%emt 0:00:00]} d4 {[%emt 0:00:00]} 27. Bxc6 {[%emt 0:00:00]} Bxc6 {[%emt 0:00:00]} 28. Rxd4 {[%emt 0:00:00]} Bxf3 {[%emt 0:00:00]} 29. Rxg4 {[%emt 0:00:00]} Bxg4 {[%emt 0:00:00]} 30. Qf4 {[%emt 0:00:00]} Be6 {[%emt 0:00:00]} 31. Rc1 {[%emt 0:00:00]} Rc5 {[%emt 0:00:00]} 32. a3 {[%emt 0:00:00]} Rfc8 {[%emt 0:00:00]} 33. Rd1 {[%emt 0:00:00]} Rc3 {[%emt 0:00:00]} 34. Qf6+ {[%emt 0:00:00]} Kh7 {[%emt 0:00:00]} 35. Kh2 {[%emt 0:00:17]} Rxa3 {[%emt 0:00:00]} 36. Qe7 {[%emt 0:02:55]} Rac3 {[%emt 0:00:00]} 37. Qxa7 {[%emt 0:00:53]} b5 {[%emt 0:00:00]} 38. Qb6 {[%emt 0:05:23]} R3c5 {[%emt 0:00:00]} 39. Rb1 {[%emt 0:01:50]} Rxe5 {[%emt 0:02:35]} 40. Rxb5 {[%emt 0:00:13]} Rxb5 {[%emt 0:00:40]} 41. Qxb5 {[%emt 0:30:02]} Rc4 {[%emt 0:31:11]} 42. Qg5 {[%emt 0:00:33]} 1/2-1/2

[Event "Netanya Open 2019"]
[Site "Netanya"]
[Date "2019.06.27"]
[Round "5.18"]
[White "Veinberg, Nimrod"]
[Black "Karp, Michael"]
[Result "1-0"]
[ECO "D02"]
[WhiteElo "2401"]
[BlackElo "2194"]
[Annotator "NA"]
[PlyCount "91"]
[EventDate "2019.06.23"]
[EventType "swiss"]
[EventCountry "ISR"]
[SourceTitle "playchess.com"]
[Source "ChessBase"]
[SourceQuality "1"]
[TimeControl "40/5400+30:1800+30"]

1. d4 {[%emt 0:00:00]} d5 {[%emt 0:00:10]} 2. Nf3 {[%emt 0:00:19]} Nf6 {[%emt 0:00:16]} 3. Bf4 {[%emt 0:00:15]} c5 {[%emt 0:01:19]} 4. e3 {[%emt 0:00:24]} Nc6 {[%emt 0:00:46]} 5. Nbd2 {[%emt 0:00:38]} Qb6 {[%emt 0:02:23]} 6. dxc5 {[%emt 0:01:34]} Qxb2 {[%emt 0:01:36]} 7. Rb1 {[%emt 0:00:54]} Qc3 {[%emt 0:10:16]} 8. Rb3 {[%emt 0:10:36]} Qxc5 {[%emt 0:06:21]} 9. c4 {[%emt 0:00:36]} e6 {[%emt 0:06:23]} 10. Be2 {[%emt 0:01:13]} Qa5 {[%emt 0:07:50]} 11. O-O {[%emt 0:00:58]} Bb4 {[%emt 0:08:19]} 12. cxd5 {[%emt 0:02:49]} exd5 {[%emt 0:06:47]} 13. a3 {[%emt 0:12:45]} Be7 {[%emt 0:04:51]} 14. Rb5 {[%emt 0:00:21]} Qd8 {[%emt 0:01:12]} 15. Qc2 {[%emt 0:01:56]} O-O {[%emt 0:06:57]} 16. Rd1 {[%emt 0:00:11]} a6 {[%emt 0:01:52]} 17. Rb3 {[%emt 0:03:37]} Nd7 {[%emt 0:05:12]} 18. e4 {[%emt 0:11:55]} Nc5 {[%emt 0:05:56]} 19. Rbb1 {[%emt 0:05:16]} Ne6 {[%emt 0:06:33]} 20. Be3 {[%emt 0:04:39]} d4 {[%emt 0:01:25]} 21. Nb3 {[%emt 0:01:47]} Bxa3 {[%emt 0:03:35]} 22. Nbxd4 {[%emt 0:00:55]} Nexd4 {[%emt 0:00:55]} 23. Nxd4 {[%emt 0:00:33]} Nxd4 {[%emt 0:00:29]} 24. Bxd4 {[%emt 0:00:20]} Qg5 {[%emt 0:00:52]} 25. Rb3 {[%emt 0:01:21]} Bd6 {[%emt 0:03:11]} 26. Bxg7 {[%emt 0:01:28]} Be6 {[%emt 0:01:40]} 27. Bxf8 {[%emt 0:01:59]} Bxb3 {[%emt 0:00:34]} 28. Qxb3 {[%emt 0:00:14]} Bxf8 {[%emt 0:00:52]} 29. Rd7 {[%emt 0:00:48]} Qg7 {[%emt 0:02:19]} 30. Qxb7 {[%emt 0:02:35]} Re8 {[%emt 0:01:02]} 31. Bxa6 {[%emt 0:00:30]} Bc5 {[%emt 0:01:33]} 32. Qd5 {[%emt 0:01:34]} Be7 {[%emt 0:01:20]} 33. g3 {[%emt 0:00:55]} Qf6 {[%emt 0:00:42]} 34. Bc4 {[%emt 0:02:12]} Rd8 {[%emt 0:00:14]} 35. e5 {[%emt 0:01:21]} Rxd7 {[%emt 0:00:54]} 36. Qxd7 {[%emt 0:00:04]} Qxe5 {[%emt 0:00:26]} 37. Qe8+ {[%emt 0:00:09]} Kg7 {[%emt 0:00:09]} 38. Qxf7+ {[%emt 0:00:11]} Kh6 {[%emt 0:00:02]} 39. Bd3 {[%emt 0:00:18]} Qg7 {[%emt 0:01:24]} 40. Qe6+ {[%emt 0:00:23]} Qf6 {[%emt 0:00:23]} 41. Qh3+ {[%emt 0:30:14]} Kg7 {[%emt 0:30:07]} 42. Qxh7+ {[%emt 0:00:11]} Kf8 {[%emt 0:00:05]} 43. Qf5 {[%emt 0:01:09]} Qxf5 {[%emt 0:00:07]} 44. Bxf5 {[%emt 0:00:02]} Kg7 {[%emt 0:00:41]} 45. Kg2 {[%emt 0:00:10]} Bc5 {[%emt 0:00:00]} 46. f4 {[%emt 0:00:00]} 1-0

[Event "Netanya Open 2019"]
[Site "Netanya"]
[Date "2019.06.27"]
[Round "5.19"]
[White "Lahav, Michal"]
[Black "Krayz, Alexander"]
[Result "1/2-1/2"]
[ECO "B05"]
[WhiteElo "2178"]
[BlackElo "2377"]
[Annotator "NA"]
[PlyCount "85"]
[EventDate "2019.06.23"]
[EventType "swiss"]
[EventCountry "ISR"]
[SourceTitle "playchess.com"]
[Source "ChessBase"]
[SourceQuality "1"]
[TimeControl "40/5400+30:1800+30"]

1. e4 {[%emt 0:00:00]} Nf6 {[%emt 0:00:00]} 2. e5 {[%emt 0:00:00]} Nd5 {[%emt 0:00:00]} 3. d4 {[%emt 0:00:00]} d6 {[%emt 0:00:00]} 4. Nf3 {[%emt 0:00:00]} Bg4 {[%emt 0:00:06]} 5. Be2 {[%emt 0:00:00]} e6 {[%emt 0:00:12]} 6. O-O {[%emt 0:00:32]} Be7 {[%emt 0:00:08]} 7. h3 {[%emt 0:00:26]} Bh5 {[%emt 0:00:17]} 8. c4 {[%emt 0:00:15]} Nb6 {[%emt 0:00:08]} 9. Nc3 {[%emt 0:00:11]} O-O {[%emt 0:00:19]} 10. Be3 {[%emt 0:00:10]} N8d7 {[%emt 0:01:36]} 11. exd6 {[%emt 0:05:25]} cxd6 {[%emt 0:00:21]} 12. b3 {[%emt 0:00:07]} Nf6 {[%emt 0:02:12]} 13. Rc1 {[%emt 0:03:29]} Nbd7 {[%emt 0:02:47]} 14. Ne1 {[%emt 0:09:25]} Bxe2 {[%emt 0:00:50]} 15. Qxe2 {[%emt 0:00:06]} Qa5 {[%emt 0:02:27]} 16. Nd3 {[%emt 0:03:39]} h6 {[%emt 0:03:13]} 17. Qf3 {[%emt 0:02:25]} Rfb8 {[%emt 0:09:46]} 18. Rfd1 {[%emt 0:02:58]} Nf8 {[%emt 0:02:34]} 19. Bf4 {[%emt 0:06:51]} Ng6 {[%emt 0:02:44]} 20. Bg3 {[%emt 0:00:28]} Qh5 {[%emt 0:07:08]} 21. Qxh5 {[%emt 0:11:59]} Nxh5 {[%emt 0:00:09]} 22. Bh2 {[%emt 0:00:15]} Nf6 {[%emt 0:03:23]} 23. c5 {[%emt 0:04:23]} Rd8 {[%emt 0:02:33]} 24. b4 {[%emt 0:00:25]} Nh4 {[%emt 0:09:29]} 25. Nb2 {[%emt 0:02:02]} h5 {[%emt 0:05:04]} 26. Nc4 {[%emt 0:00:59]} Nf5 {[%emt 0:00:08]} 27. Nb5 {[%emt 0:05:15]} dxc5 {[%emt 0:05:59]} 28. dxc5 {[%emt 0:01:16]} Nd5 {[%emt 0:01:05]} 29. a3 {[%emt 0:01:36]} Bg5 {[%emt 0:00:40]} 30. Ra1 {[%emt 0:05:32]} Bf6 {[%emt 0:03:35]} 31. Rac1 {[%emt 0:00:07]} h4 {[%emt 0:04:58]} 32. Nc7 {[%emt 0:03:37]} Nc3 {[%emt 0:01:03]} 33. Nxa8 {[%emt 0:04:18]} Nxd1 {[%emt 0:00:11]} 34. Nc7 {[%emt 0:00:39]} Nc3 {[%emt 0:00:22]} 35. Kf1 {[%emt 0:00:22]} Ne4 {[%emt 0:18:12]} 36. Nb5 {[%emt 0:01:11]} Nd2+ {[%emt 0:07:32]} 37. Ke2 {[%emt 0:07:24]} Nxc4 {[%emt 0:01:39]} 38. Rxc4 {[%emt 0:00:01]} e5 {[%emt 0:00:45]} 39. Nxa7 {[%emt 0:06:42]} Nd4+ {[%emt 0:00:31]} 40. Ke1 {[%emt 0:00:00]} Ra8 {[%emt 0:01:17]} 41. c6 {[%emt 0:29:53]} bxc6 {[%emt 0:32:14]} 42. Nxc6 {[%emt 0:00:05]} Nxc6 {[%emt 0:00:00]} 43. Rxc6 {[%emt 0:00:00]} 1/2-1/2

[Event "Netanya Open 2019"]
[Site "Netanya"]
[Date "2019.06.27"]
[Round "5.20"]
[White "Gorshtein, Ido"]
[Black "Gleizer, Mark"]
[Result "1-0"]
[ECO "A40"]
[WhiteElo "2367"]
[BlackElo "2173"]
[Annotator "NA"]
[PlyCount "123"]
[EventDate "2019.06.23"]
[EventType "swiss"]
[EventCountry "ISR"]
[SourceTitle "playchess.com"]
[Source "ChessBase"]
[SourceQuality "1"]
[TimeControl "40/5400+30:1800+30"]

1. c4 {[%emt 0:00:00]} c5 {[%emt 0:05:23]} 2. Nf3 {[%emt 0:00:00]} g6 {[%emt 0:01:13]} 3. d4 {[%emt 0:00:03]} Bg7 {[%emt 0:00:59]} 4. e4 {[%emt 0:02:36]} Nc6 {[%emt 0:01:05]} 5. dxc5 {[%emt 0:04:12]} Qa5+ {[%emt 0:05:29]} 6. Bd2 {[%emt 0:01:13]} Qxc5 {[%emt 0:00:23]} 7. Nc3 {[%emt 0:00:34]} Nf6 {[%emt 0:01:39]} 8. Be2 {[%emt 0:01:30]} O-O {[%emt 0:06:50]} 9. O-O {[%emt 0:01:02]} Qb6 {[%emt 0:01:42]} 10. Rb1 {[%emt 0:02:26]} d6 {[%emt 0:00:44]} 11. Be3 {[%emt 0:00:51]} Qc7 {[%emt 0:04:06]} 12. Nd2 {[%emt 0:02:19]} b6 {[%emt 0:01:35]} 13. f3 {[%emt 0:00:28]} Bb7 {[%emt 0:02:18]} 14. Qe1 {[%emt 0:01:38]} Rad8 {[%emt 0:03:13]} 15. Qh4 {[%emt 0:15:36]} Rfe8 {[%emt 0:00:58]} 16. Rbc1 {[%emt 0:05:24]} Qb8 {[%emt 0:00:54]} 17. Rfe1 {[%emt 0:01:06]} Nd7 {[%emt 0:02:41]} 18. Bf1 {[%emt 0:01:08]} Nc5 {[%emt 0:01:36]} 19. a3 {[%emt 0:01:24]} Nd4 {[%emt 0:02:44]} 20. Red1 {[%emt 0:11:19]} e5 {[%emt 0:05:11]} 21. b4 {[%emt 0:01:24]} Nce6 {[%emt 0:01:20]} 22. Nd5 {[%emt 0:01:22]} Rd7 {[%emt 0:01:50]} 23. Nb1 {[%emt 0:04:14]} Qd8 {[%emt 0:01:14]} 24. Qxd8 {[%emt 0:00:36]} Rdxd8 {[%emt 0:02:12]} 25. Nbc3 {[%emt 0:00:41]} Bc6 {[%emt 0:02:59]} 26. Bf2 {[%emt 0:02:26]} Rb8 {[%emt 0:06:11]} 27. Nb5 {[%emt 0:02:27]} Bxb5 {[%emt 0:01:07]} 28. cxb5 {[%emt 0:00:07]} Kf8 {[%emt 0:02:09]} 29. Bxd4 {[%emt 0:01:17]} exd4 {[%emt 0:00:50]} 30. Rc6 {[%emt 0:00:15]} Red8 {[%emt 0:03:34]} 31. g3 {[%emt 0:01:04]} Ke8 {[%emt 0:02:38]} 32. f4 {[%emt 0:00:42]} Nf8 {[%emt 0:04:57]} 33. h4 {[%emt 0:04:34]} Rb7 {[%emt 0:03:10]} 34. Kg2 {[%emt 0:03:09]} h5 {[%emt 0:04:37]} 35. Kf3 {[%emt 0:00:46]} Nh7 {[%emt 0:01:37]} 36. Bh3 {[%emt 0:01:48]} Nf6 {[%emt 0:00:37]} 37. Nc7+ {[%emt 0:02:11]} Kf8 {[%emt 0:01:02]} 38. a4 {[%emt 0:01:20]} Ne8 {[%emt 0:00:51]} 39. Nd5 {[%emt 0:00:13]} Nf6 {[%emt 0:00:51]} 40. Rxd4 {[%emt 0:01:31]} Nxd5 {[%emt 0:01:43]} 41. Rxd5 {[%emt 0:30:02]} Ke8 {[%emt 0:32:12]} 42. Bc8 {[%emt 0:04:18]} Rb8 {[%emt 0:01:57]} 43. Bh3 {[%emt 0:00:02]} Rb7 {[%emt 0:00:39]} 44. a5 {[%emt 0:00:32]} Bf8 {[%emt 0:01:05]} 45. a6 {[%emt 0:01:12]} Re7 {[%emt 0:03:35]} 46. e5 {[%emt 0:00:48]} f5 {[%emt 0:01:27]} 47. exd6 {[%emt 0:00:42]} Red7 {[%emt 0:01:19]} 48. Bxf5 {[%emt 0:08:21]} gxf5 {[%emt 0:01:09]} 49. Rxf5 {[%emt 0:00:15]} Bxd6 {[%emt 0:02:22]} 50. Rxh5 {[%emt 0:00:10]} Bxb4 {[%emt 0:00:49]} 51. Kg4 {[%emt 0:04:13]} Kf7 {[%emt 0:00:00]} 52. Rh7+ {[%emt 0:00:00]} Kg8 {[%emt 0:00:00]} 53. Rxd7 {[%emt 0:00:00]} Rxd7 {[%emt 0:00:00]} 54. h5 {[%emt 0:00:00]} Rd5 {[%emt 0:00:00]} 55. Rc7 {[%emt 0:00:00]} Rxb5 {[%emt 0:00:00]} 56. Rxa7 {[%emt 0:00:00]} Ra5 {[%emt 0:00:00]} 57. f5 {[%emt 0:00:00]} Ra3 {[%emt 0:00:00]} 58. h6 {[%emt 0:00:00]} Bc3 {[%emt 0:00:00]} 59. Kh5 {[%emt 0:00:00]} Bb2 {[%emt 0:01:03]} 60. g4 {[%emt 0:00:00]} b5 {[%emt 0:01:06]} 61. Kg6 {[%emt 0:00:00]} Kf8 {[%emt 0:00:46]} 62. f6 {[%emt 0:00:00]} 1-0

[Event "Netanya Open 2019"]
[Site "Netanya"]
[Date "2019.06.27"]
[Round "5.21"]
[White "Aizenberg, Benny"]
[Black "Shvayger, Yuliya"]
[Result "1-0"]
[ECO "B32"]
[WhiteElo "2156"]
[BlackElo "2361"]
[Annotator "NA"]
[PlyCount "133"]
[EventDate "2019.06.23"]
[EventType "swiss"]
[EventCountry "ISR"]
[SourceTitle "playchess.com"]
[Source "ChessBase"]
[SourceQuality "1"]
[TimeControl "40/5400+30:1800+30"]

1. e4 {[%emt 0:00:00]} c5 {[%emt 0:00:00]} 2. Nf3 {[%emt 0:00:00]} Nc6 {[%emt 0:00:00]} 3. d4 {[%emt 0:00:00]} cxd4 {[%emt 0:00:00]} 4. Nxd4 {[%emt 0:00:00]} Qb6 {[%emt 0:00:06]} 5. Nb3 {[%emt 0:01:42]} Nf6 {[%emt 0:03:43]} 6. Be3 {[%emt 0:09:31]} Qc7 {[%emt 0:05:49]} 7. Bd3 {[%emt 0:02:59]} e6 {[%emt 0:02:16]} 8. O-O {[%emt 0:02:02]} a6 {[%emt 0:03:22]} 9. N1d2 {[%emt 0:03:51]} d6 {[%emt 0:09:54]} 10. a4 {[%emt 0:03:56]} b6 {[%emt 0:00:32]} 11. f4 {[%emt 0:11:25]} g6 {[%emt 0:00:27]} 12. Qf3 {[%emt 0:18:52]} Bb7 {[%emt 0:06:27]} 13. Nc4 {[%emt 0:05:42]} Nd7 {[%emt 0:00:42]} 14. a5 {[%emt 0:03:25]} b5 {[%emt 0:01:32]} 15. Nb6 {[%emt 0:01:15]} Nxb6 {[%emt 0:03:53]} 16. axb6 {[%emt 0:00:21]} Qe7 {[%emt 0:01:14]} 17. e5 {[%emt 0:12:47]} d5 {[%emt 0:08:27]} 18. Qf2 {[%emt 0:04:21]} Bg7 {[%emt 0:01:38]} 19. Bc5 {[%emt 0:01:14]} Qd8 {[%emt 0:00:02]} 20. Na5 {[%emt 0:00:49]} Nxa5 {[%emt 0:01:04]} 21. Rxa5 {[%emt 0:00:04]} f5 {[%emt 0:01:27]} 22. exf6 {[%emt 0:02:10]} Qxf6 {[%emt 0:02:53]} 23. g4 {[%emt 0:06:35]} Rc8 {[%emt 0:16:06]} 24. c3 {[%emt 0:01:00]} Kd7 {[%emt 0:00:18]} 25. Bd4 {[%emt 0:01:44]} Qe7 {[%emt 0:03:16]} 26. Bxg7 {[%emt 0:01:44]} Qxg7 {[%emt 0:00:02]} 27. Rfa1 {[%emt 0:01:35]} Qe7 {[%emt 0:05:34]} 28. Rxa6 {[%emt 0:01:11]} Bxa6 {[%emt 0:01:02]} 29. Bxb5+ {[%emt 0:00:18]} Bxb5 {[%emt 0:02:18]} 30. Ra7+ {[%emt 0:00:01]} Kd8 {[%emt 0:00:56]} 31. Rxe7 {[%emt 0:00:05]} Kxe7 {[%emt 0:00:04]} 32. b7 {[%emt 0:00:07]} Rb8 {[%emt 0:01:48]} 33. Qc5+ {[%emt 0:00:04]} Kf7 {[%emt 0:00:04]} 34. Qxb5 {[%emt 0:00:04]} Rhe8 {[%emt 0:00:24]} 35. f5 {[%emt 0:01:03]} gxf5 {[%emt 0:01:53]} 36. gxf5 {[%emt 0:00:04]} Re7 {[%emt 0:01:01]} 37. fxe6+ {[%emt 0:00:07]} Kxe6 {[%emt 0:00:14]} 38. c4 {[%emt 0:03:28]} dxc4 {[%emt 0:10:03]} 39. Qc6+ {[%emt 0:00:22]} Kf7 {[%emt 0:03:59]} 40. Qxc4+ {[%emt 0:02:05]} Kg7 {[%emt 0:00:03]} 41. Qg4+ {[%emt 0:30:25]} Kh8 {[%emt 0:31:31]} 42. Qc8+ {[%emt 0:00:00]} Re8 {[%emt 0:00:00]} 43. Qc7 {[%emt 0:00:00]} Rf8 {[%emt 0:00:00]} 44. h4 {[%emt 0:00:00]} Rbe8 {[%emt 0:00:00]} 45. Qc3+ {[%emt 0:00:00]} Kg8 {[%emt 0:00:00]} 46. h5 {[%emt 0:00:00]} Kf7 {[%emt 0:00:00]} 47. Qc7+ {[%emt 0:00:00]} Kf6 {[%emt 0:00:00]} 48. Qf4+ {[%emt 0:00:00]} Ke6 {[%emt 0:00:00]} 49. Qh6+ {[%emt 0:00:00]} Kf5 {[%emt 0:00:00]} 50. b8=Q {[%emt 0:00:00]} Rxb8 {[%emt 0:00:00]} 51. Qxh7+ {[%emt 0:00:00]} Kg4 {[%emt 0:00:00]} 52. b4 {[%emt 0:00:00]} Rbe8 {[%emt 0:00:00]} 53. Qd3 {[%emt 0:00:00]} Kxh5 {[%emt 0:00:00]} 54. b5 {[%emt 0:00:00]} Kh4 {[%emt 0:00:00]} 55. b6 {[%emt 0:00:00]} Ra8 {[%emt 0:00:00]} 56. Qd4+ {[%emt 0:00:00]} Kh3 {[%emt 0:00:00]} 57. b7 {[%emt 0:00:00]} Rad8 {[%emt 0:00:00]} 58. Qe3+ {[%emt 0:00:00]} Kh4 {[%emt 0:00:00]} 59. Kh2 {[%emt 0:00:00]} Kg4 {[%emt 0:00:00]} 60. Qe4+ {[%emt 0:00:00]} Kg5 {[%emt 0:00:00]} 61. Kg3 {[%emt 0:00:00]} Rde8 {[%emt 0:00:00]} 62. Qd5+ {[%emt 0:00:00]} Rf5 {[%emt 0:00:00]} 63. Qd2+ {[%emt 0:00:00]} Kh5 {[%emt 0:00:00]} 64. Qd1+ {[%emt 0:00:00]} Kg5 {[%emt 0:00:00]} 65. Qg4+ {[%emt 0:00:00]} Kf6 {[%emt 0:00:00]} 66. Qd4+ {[%emt 0:00:00]} Kg5 {[%emt 0:00:00]} 67. Qg7+ {[%emt 0:00:00]} 1-0